[Event "Gideon Japhet ACP Open 2018"]
[Site "Jerusalem"]
[Date "2018.07.01"]
[Round "1"]
[White "Bagrationi, Alexander"]
[Black "Solomon, Asif"]
[Result "1-0"]
[ECO "E71"]
[WhiteElo "2539"]
[BlackElo "2184"]
[Annotator "RC"]
[PlyCount "121"]
[EventDate "2018.07.01"]
[EventType "swiss"]
[EventCountry "ISR"]
[SourceTitle "playchess.com"]
[Source "ChessBase"]
[SourceQuality "1"]
[TimeControl "40/5400+30:1800+30"]

1. d4 Nf6 2. c4 g6 3. Nc3 Bg7 4. e4 d6 5. h3 O-O 6. Be3 c5 7. d5 e6 8. dxe6 {[%emt 0:09:06]} fxe6 {[%emt 0:07:20]} 9. Qd2 {[%emt 0:00:34]} Nc6 {[%emt 0:02:54]} 10. Bd3 {[%emt 0:07:44]} Nd4 {[%emt 0:06:37]} 11. Nge2 {[%emt 0:01:58]} e5 {[%emt 0:02:56]} 12. Bh6 {[%emt 0:06:43]} Qa5 {[%emt 0:03:59]} 13. Bxg7 {[%emt 0:09:06]} Kxg7 {[%emt 0:00:26]} 14. Nxd4 {[%emt 0:02:08]} cxd4 {[%emt 0:06:00]} 15. Ne2 {[%emt 0:00:50]} Qxd2+ {[%emt 0:02:09]} 16. Kxd2 {[%emt 0:02:57]} Be6 {[%emt 0:05:36]} 17. b4 {[%emt 0:11:48]} a5 {[%emt 0:11:06]} 18. a3 {[%emt 0:00:44]} axb4 {[%emt 0:07:04]} 19. axb4 {[%emt 0:00:12]} Bxc4 {[%emt 0:04:07]} 20. Bxc4 {[%emt 0:08:49]} Nxe4+ {[%emt 0:00:55]} 21. Kc2 {[%emt 0:00:49]} d3+ {[%emt 0:04:37]} 22. Bxd3 {[%emt 0:01:37]} Rfc8+ {[%emt 0:03:17]} 23. Kb3 {[%emt 0:04:01]} Nxf2 {[%emt 0:01:20]} 24. Bb5 {[%emt 0:00:24]} Nxh1 {[%emt 0:01:17]} 25. Rxh1 {[%emt 0:00:02]} Rf8 {[%emt 0:03:24]} 26. Rd1 {[%emt 0:01:15]} Rad8 {[%emt 0:00:28]} 27. Nc3 {[%emt 0:02:25]} Rf2 {[%emt 0:01:07]} 28. Ne4 {[%emt 0:00:35]} Rxg2 {[%emt 0:01:18]} 29. Nxd6 {[%emt 0:00:12]} Rg3+ {[%emt 0:01:48]} 30. Kc4 {[%emt 0:00:13]} Rf8 {[%emt 0:04:04]} 31. Bd7 {[%emt 0:01:10]} Rf4+ {[%emt 0:02:21]} 32. Kc5 {[%emt 0:06:18]} Rc3+ {[%emt 0:04:06]} 33. Kb5 {[%emt 0:00:02]} Rd4 {[%emt 0:02:55]} 34. Rxd4 {[%emt 0:14:19]} exd4 {[%emt 0:00:10]} 35. Ne4 {[%emt 0:00:03]} Rc2 {[%emt 0:04:28]} 36. Nc5 {[%emt 0:02:59]} Kf6 {[%emt 0:06:16]} 37. Kb6 {[%emt 0:00:02]} Ke5 {[%emt 0:01:38]} 38. Bb5 {[%emt 0:03:13]} Kf4 {[%emt 0:01:00]} 39. Kxb7 {[%emt 0:01:03]} Kg3 {[%emt 0:01:13]} 40. Bd3 {[%emt 0:02:56]} Rc1 {[%emt 0:00:49]} 41. Kc6 {[%emt 0:31:14]} Re1 {[%emt 0:10:21]} 42. b5 {[%emt 0:00:00]} Re7 {[%emt 0:02:55]} 43. b6 {[%emt 0:00:00]} Kxh3 {[%emt 0:02:01]} 44. b7 {[%emt 0:00:00]} Rxb7 {[%emt 0:02:03]} 45. Kxb7 {[%emt 0:00:00]} Kg3 {[%emt 0:05:27]} 46. Kc6 {[%emt 0:00:00]} Kf2 {[%emt 0:05:55]} 47. Kd5 {[%emt 0:00:00]} g5 {[%emt 0:01:03]} 48. Bxh7 {[%emt 0:00:00]} g4 {[%emt 0:00:58]} 49. Ke4 {[%emt 0:00:00]} g3 {[%emt 0:00:56]} 50. Nd3+ {[%emt 0:00:00]} Kg2 {[%emt 0:02:22]} 51. Nf4+ {[%emt 0:00:00]} Kf2 {[%emt 0:00:12]} 52. Nh3+ {[%emt 0:00:00]} Kg2 {[%emt 0:00:48]} 53. Bf5 {[%emt 0:00:00]} Kh2 {[%emt 0:01:26]} 54. Kf3 {[%emt 0:00:00]} g2 {[%emt 0:00:47]} 55. Kf2 {[%emt 0:00:00]} d3 {[%emt 0:00:24]} 56. Ng1 {[%emt 0:00:00]} d2 {[%emt 0:00:13]} 57. Bg4 {[%emt 0:00:00]} Kh1 {[%emt 0:00:30]} 58. Bd1 {[%emt 0:00:00]} Kh2 {[%emt 0:00:16]} 59. Bf3 {[%emt 0:00:00]} d1=N+ {[%emt 0:00:23]} 60. Bxd1 {[%emt 0:00:00]} Kh1 {[%emt 0:00:07]} 61. Be2 {[%emt 0:00:00]} 1-0

[Event "Gideon Japhet ACP Open 2018"]
[Site "Jerusalem"]
[Date "2018.07.01"]
[Round "1"]
[White "Muzychuk, Mariya"]
[Black "Milikow, Yoav"]
[Result "1-0"]
[ECO "C17"]
[WhiteElo "2521"]
[BlackElo "2161"]
[Annotator "ChessBase"]
[PlyCount "75"]
[EventDate "2018.07.01"]
[EventType "swiss"]
[EventCountry "ISR"]
[SourceTitle "playchess.com"]
[Source "ChessBase"]
[SourceQuality "1"]
[TimeControl "40/5400+30:1800+30"]

1. e4 {[%emt 0:00:00]} e6 {[%emt 0:00:00]} 2. d4 {[%emt 0:00:00]} d5 {[%emt 0:00:00]} 3. Nc3 {[%emt 0:00:00]} Bb4 {[%emt 0:00:00]} 4. e5 {[%emt 0:00:14]} c5 {[%emt 0:00:03]} 5. a3 {[%emt 0:00:03]} Ba5 {[%emt 0:00:06]} 6. b4 {[%emt 0:01:46]} cxd4 {[%emt 0:00:13]} 7. Nb5 {[%emt 0:03:11]} Bc7 {[%emt 0:01:14]} 8. f4 {[%emt 0:00:41]} f6 {[%emt 0:01:34]} 9. Nf3 {[%emt 0:05:12]} Nc6 {[%emt 0:01:35]} 10. Nxc7+ {[%emt 0:04:19]} Qxc7 {[%emt 0:01:18]} 11. Bb5 {[%emt 0:02:31]} Bd7 {[%emt 0:07:37]} 12. O-O {[%emt 0:05:51]} Nge7 {[%emt 0:05:55]} 13. exf6 {[%emt 0:11:02]} gxf6 {[%emt 0:01:46]} 14. Nxd4 {[%emt 0:02:03]} Nxd4 {[%emt 0:04:42]} 15. Bxd7+ {[%emt 0:00:06]} Kxd7 {[%emt 0:00:34]} 16. Qxd4 {[%emt 0:00:02]} Qb6 {[%emt 0:04:37]} 17. Bb2 {[%emt 0:09:07]} Qxd4+ {[%emt 0:01:25]} 18. Bxd4 {[%emt 0:00:05]} Rhf8 {[%emt 0:02:12]} 19. Rad1 {[%emt 0:05:25]} Rac8 {[%emt 0:18:40]} 20. Rd2 {[%emt 0:11:13]} b6 {[%emt 0:03:02]} 21. g4 {[%emt 0:01:26]} Rg8 {[%emt 0:05:49]} 22. Rg2 {[%emt 0:03:33]} f5 {[%emt 0:02:09]} 23. g5 {[%emt 0:01:23]} Ng6 {[%emt 0:05:07]} 24. c3 {[%emt 0:01:27]} b5 {[%emt 0:07:05]} 25. Rg3 {[%emt 0:02:19]} Rc7 {[%emt 0:05:00]} 26. Rh3 {[%emt 0:01:15]} Kc6 {[%emt 0:00:59]} 27. Rh6 {[%emt 0:00:24]} a6 {[%emt 0:05:59]} 28. h4 {[%emt 0:00:40]} Re7 {[%emt 0:02:02]} 29. Bc5 {[%emt 0:03:18]} Reg7 {[%emt 0:02:36]} 30. h5 {[%emt 0:00:43]} Nxf4 {[%emt 0:00:31]} 31. Rxf4 {[%emt 0:00:10]} Rxg5+ {[%emt 0:00:05]} 32. Kf1 {[%emt 0:00:22]} Re8 {[%emt 0:01:34]} 33. Rf3 {[%emt 0:01:14]} a5 {[%emt 0:01:27]} 34. Be3 {[%emt 0:00:17]} Rg7 {[%emt 0:00:26]} 35. Rxf5 {[%emt 0:00:55]} axb4 {[%emt 0:00:26]} 36. axb4 {[%emt 0:00:24]} Kd7 {[%emt 0:00:53]} 37. Rf3 {[%emt 0:00:47]} e5 {[%emt 0:00:16]} 38. Ra6 {[%emt 0:00:25]} 1-0

[Event "Gideon Japhet ACP Open 2018"]
[Site "Jerusalem"]
[Date "2018.07.01"]
[Round "1"]
[White "Caspi, Israel"]
[Black "Yaacov, Avi"]
[Result "1-0"]
[ECO "C97"]
[WhiteElo "2479"]
[BlackElo "2106"]
[Annotator "RC"]
[PlyCount "151"]
[EventDate "2018.07.01"]
[EventType "swiss"]
[EventCountry "ISR"]
[SourceTitle "playchess.com"]
[Source "ChessBase"]
[SourceQuality "1"]
[TimeControl "40/5400+30:1800+30"]

1. e4 {[%emt 0:00:00]} e5 {[%emt 0:00:00]} 2. Nf3 {[%emt 0:00:00]} Nc6 {[%emt 0:00:22]} 3. Bb5 {[%emt 0:00:00]} a6 {[%emt 0:00:31]} 4. Ba4 {[%emt 0:00:00]} Nf6 {[%emt 0:01:25]} 5. O-O {[%emt 0:00:00]} b5 {[%emt 0:00:13]} 6. Bb3 {[%emt 0:00:00]} Be7 {[%emt 0:00:11]} 7. Re1 {[%emt 0:00:33]} d6 {[%emt 0:01:06]} 8. c3 {[%emt 0:00:07]} O-O {[%emt 0:00:57]} 9. h3 {[%emt 0:00:04]} Na5 {[%emt 0:00:22]} 10. Bc2 {[%emt 0:00:02]} c5 {[%emt 0:00:19]} 11. d4 {[%emt 0:00:07]} Qc7 {[%emt 0:03:01]} 12. Nbd2 {[%emt 0:01:06]} exd4 13. cxd4 {[%emt 0:00:09]} Nd7 {[%emt 0:06:45]} 14. Nf1 {[%emt 0:06:15]} Bf6 {[%emt 0:02:43]} 15. Ne3 {[%emt 0:19:46]} Bb7 {[%emt 0:08:43]} 16. Nf5 {[%emt 0:02:17]} cxd4 {[%emt 0:03:15]} 17. N3xd4 {[%emt 0:05:05]} g6 {[%emt 0:00:50]} 18. Nh6+ {[%emt 0:01:13]} Kh8 {[%emt 0:00:44]} 19. Ng4 {[%emt 0:06:18]} Bg7 {[%emt 0:00:20]} 20. Bf4 {[%emt 0:00:24]} Ne5 {[%emt 0:02:26]} 21. Bh6 {[%emt 0:17:51]} Nac6 {[%emt 0:17:01]} 22. Bxg7+ {[%emt 0:03:57]} Kxg7 {[%emt 0:00:12]} 23. Rc1 {[%emt 0:00:12]} Rac8 {[%emt 0:07:59]} 24. Bb3 {[%emt 0:01:22]} Qe7 {[%emt 0:02:43]} 25. Nxc6 {[%emt 0:03:57]} Rxc6 {[%emt 0:00:47]} 26. Rxc6 {[%emt 0:00:06]} Bxc6 {[%emt 0:00:09]} 27. Qd4 {[%emt 0:00:10]} h5 {[%emt 0:00:20]} 28. Ne3 {[%emt 0:00:36]} Qf6 {[%emt 0:00:28]} 29. Rd1 {[%emt 0:00:54]} Rd8 {[%emt 0:04:52]} 30. Bd5 {[%emt 0:02:27]} Bd7 {[%emt 0:02:45]} 31. Kf1 {[%emt 0:05:42]} b4 {[%emt 0:00:21]} 32. Qxb4 {[%emt 0:12:59]} Bb5+ {[%emt 0:01:10]} 33. Kg1 {[%emt 0:00:07]} Nd3 {[%emt 0:02:05]} 34. Qc3 {[%emt 0:00:28]} Nxb2 {[%emt 0:02:31]} 35. Qxf6+ {[%emt 0:00:50]} Kxf6 {[%emt 0:00:06]} 36. Rc1 {[%emt 0:00:06]} Nd3 {[%emt 0:05:44]} 37. Rc7 {[%emt 0:00:07]} Rd7 {[%emt 0:00:46]} 38. Rc8 {[%emt 0:00:08]} Nf4 {[%emt 0:05:34]} 39. Bb3 {[%emt 0:01:02]} Ke5 {[%emt 0:01:37]} 40. f3 {[%emt 0:01:07]} Kd4 {[%emt 0:01:55]} 41. Nc2+ {[%emt 0:30:38]} Ke5 {[%emt 0:32:39]} 42. g3 {[%emt 0:01:06]} Ne6 {[%emt 0:00:50]} 43. Kf2 {[%emt 0:01:41]} h4 {[%emt 0:01:15]} 44. gxh4 {[%emt 0:00:19]} Nf4 {[%emt 0:02:52]} 45. Re8+ {[%emt 0:04:56]} Kf6 {[%emt 0:01:00]} 46. Nb4 {[%emt 0:00:31]} Rc7 {[%emt 0:03:49]} 47. Rd8 {[%emt 0:00:31]} Ke7 {[%emt 0:00:24]} 48. Ra8 {[%emt 0:00:25]} Nd3+ {[%emt 0:02:29]} 49. Nxd3 {[%emt 0:00:10]} Bxd3 {[%emt 0:00:03]} 50. Ke3 {[%emt 0:01:55]} Bf1 {[%emt 0:00:33]} 51. Kd4 {[%emt 0:00:22]} Rb7 {[%emt 0:00:58]} 52. Bd5 {[%emt 0:00:18]} Rc7 {[%emt 0:00:16]} 53. f4 {[%emt 0:00:47]} Bb5 {[%emt 0:00:51]} 54. Bb3 {[%emt 0:00:28]} Bf1 {[%emt 0:00:26]} 55. Bd5 {[%emt 0:02:03]} Bb5 {[%emt 0:00:21]} 56. Rh8 {[%emt 0:00:56]} Be8 {[%emt 0:00:13]} 57. h5 {[%emt 0:00:25]} gxh5 {[%emt 0:00:21]} 58. Rxh5 {[%emt 0:00:07]} Rc2 {[%emt 0:02:35]} 59. Rh7 {[%emt 0:01:31]} a5 {[%emt 0:00:44]} 60. h4 {[%emt 0:00:00]} a4 {[%emt 0:00:00]} 61. f5 {[%emt 0:00:00]} Rh2 {[%emt 0:00:00]} 62. Rh6 {[%emt 0:00:00]} Rf2 {[%emt 0:00:00]} 63. Ke3 {[%emt 0:00:00]} Rf1 {[%emt 0:00:00]} 64. Bc4 {[%emt 0:00:00]} Rc1 {[%emt 0:00:00]} 65. f6+ {[%emt 0:00:00]} Kd8 {[%emt 0:00:00]} 66. Bd5 {[%emt 0:00:00]} Bc6 {[%emt 0:00:00]} 67. Rh8+ {[%emt 0:00:00]} Kd7 {[%emt 0:00:00]} 68. Rf8 {[%emt 0:00:00]} Bxd5 {[%emt 0:00:00]} 69. exd5 {[%emt 0:00:00]} Rc2 {[%emt 0:00:00]} 70. Rxf7+ {[%emt 0:00:00]} Ke8 {[%emt 0:00:00]} 71. Ra7 {[%emt 0:00:00]} Rxa2 {[%emt 0:00:00]} 72. Kf4 {[%emt 0:00:00]} Rd2 {[%emt 0:00:00]} 73. Kf5 {[%emt 0:00:30]} a3 {[%emt 0:00:00]} 74. Rxa3 {[%emt 0:01:17]} Rxd5+ {[%emt 0:00:00]} 75. Kg6 {[%emt 0:00:11]} Rd1 {[%emt 0:00:00]} 76. f7+ {[%emt 0:00:12]} 1-0

[Event "Gideon Japhet ACP Open 2018"]
[Site "Jerusalem"]
[Date "2018.07.01"]
[Round "1"]
[White "Gorodetzky, David"]
[Black "Milikow, Elie"]
[Result "1-0"]
[ECO "A05"]
[WhiteElo "2460"]
[BlackElo "2081"]
[Annotator "ChessBase"]
[PlyCount "77"]
[EventDate "2018.07.01"]
[EventType "swiss"]
[EventCountry "ISR"]
[SourceTitle "playchess.com"]
[Source "ChessBase"]
[SourceQuality "1"]
[TimeControl "40/5400+30:1800+30"]

1. Nf3 {[%emt 0:00:00]} Nf6 {[%emt 0:00:00]} 2. b3 {[%emt 0:00:04]} g6 {[%emt 0:00:11]} 3. Bb2 {[%emt 0:00:37]} Bg7 {[%emt 0:00:22]} 4. g3 {[%emt 0:00:03]} O-O {[%emt 0:00:16]} 5. Bg2 {[%emt 0:00:39]} d5 {[%emt 0:00:19]} 6. c4 {[%emt 0:00:03]} c6 {[%emt 0:00:13]} 7. O-O {[%emt 0:00:30]} b6 {[%emt 0:01:43]} 8. d4 {[%emt 0:16:37]} Bb7 {[%emt 0:00:22]} 9. Nbd2 {[%emt 0:03:06]} c5 {[%emt 0:07:24]} 10. dxc5 {[%emt 0:03:52]} bxc5 {[%emt 0:00:17]} 11. cxd5 {[%emt 0:02:44]} Nxd5 {[%emt 0:04:49]} 12. Bxg7 {[%emt 0:03:59]} Kxg7 {[%emt 0:00:02]} 13. Qc2 {[%emt 0:06:14]} Qc7 {[%emt 0:00:48]} 14. Rac1 {[%emt 0:06:11]} Nd7 {[%emt 0:05:16]} 15. b4 {[%emt 0:06:00]} Ba6 {[%emt 0:16:30]} 16. Nb3 {[%emt 0:23:53]} c4 {[%emt 0:06:19]} 17. Nfd2 {[%emt 0:02:26]} Nxb4 {[%emt 0:15:42]} 18. Qc3+ {[%emt 0:02:30]} Qe5 {[%emt 0:00:08]} 19. Qxb4 {[%emt 0:01:27]} cxb3 {[%emt 0:00:16]} 20. Bxa8 {[%emt 0:01:16]} b2 {[%emt 0:01:28]} 21. Rb1 {[%emt 0:03:08]} Rxa8 {[%emt 0:01:36]} 22. Qxb2 {[%emt 0:00:41]} Qxb2 {[%emt 0:02:21]} 23. Rxb2 {[%emt 0:00:03]} Bxe2 {[%emt 0:01:27]} 24. Re1 {[%emt 0:00:10]} Bg4 {[%emt 0:00:05]} 25. Rxe7 {[%emt 0:07:18]} Be6 {[%emt 0:00:39]} 26. Rb7 {[%emt 0:01:55]} Rd8 {[%emt 0:00:36]} 27. Ne4 {[%emt 0:01:02]} Kf8 {[%emt 0:01:51]} 28. Rxe6 {[%emt 0:00:45]} fxe6 {[%emt 0:00:03]} 29. Rxa7 {[%emt 0:00:12]} Ne5 {[%emt 0:00:42]} 30. Ng5 {[%emt 0:01:03]} Rd2 {[%emt 0:01:02]} 31. a4 {[%emt 0:02:37]} Ra2 {[%emt 0:01:09]} 32. a5 {[%emt 0:01:15]} Nc6 {[%emt 0:00:10]} 33. Nxh7+ {[%emt 0:01:31]} Ke8 {[%emt 0:00:29]} 34. Nf6+ {[%emt 0:00:53]} Kd8 {[%emt 0:00:09]} 35. Rd7+ {[%emt 0:00:28]} Kc8 {[%emt 0:00:03]} 36. Rd6 {[%emt 0:00:46]} Nxa5 {[%emt 0:01:12]} 37. Rxe6 {[%emt 0:00:04]} Nb3 {[%emt 0:01:03]} 38. Ne4 {[%emt 0:00:46]} Re2 {[%emt 0:00:43]} 39. Nd6+ {[%emt 0:00:07]} 1-0

[Event "Gideon Japhet ACP Open 2018"]
[Site "Jerusalem"]
[Date "2018.07.01"]
[Round "1"]
[White "Shohat, Yotam"]
[Black "Boruchovsky, Avital"]
[Result "0-1"]
[ECO "C80"]
[WhiteElo "2189"]
[BlackElo "2558"]
[Annotator "ChessBase"]
[PlyCount "69"]
[EventDate "2018.07.01"]
[EventType "swiss"]
[EventCountry "ISR"]
[SourceTitle "playchess.com"]
[Source "ChessBase"]
[SourceQuality "1"]
[TimeControl "40/5400+30:1800+30"]

1. e4 {[%emt 0:00:00]} e5 {[%emt 0:00:00]} 2. Nf3 {[%emt 0:00:00]} Nc6 {[%emt 0:00:00]} 3. Bb5 {[%emt 0:00:00]} a6 {[%emt 0:00:00]} 4. Ba4 {[%emt 0:00:00]} Nf6 {[%emt 0:00:00]} 5. O-O {[%emt 0:00:00]} Nxe4 {[%emt 0:00:03]} 6. d4 {[%emt 0:00:20]} b5 {[%emt 0:00:06]} 7. Bb3 {[%emt 0:00:04]} d5 {[%emt 0:00:03]} 8. dxe5 {[%emt 0:00:06]} Be6 {[%emt 0:00:05]} 9. Nbd2 {[%emt 0:01:34]} Nc5 {[%emt 0:00:15]} 10. Qe2 {[%emt 0:02:15]} Be7 {[%emt 0:01:29]} 11. Rd1 {[%emt 0:04:43]} O-O {[%emt 0:01:54]} 12. Nf1 {[%emt 0:02:13]} Nxb3 {[%emt 0:10:23]} 13. axb3 {[%emt 0:00:08]} d4 {[%emt 0:00:07]} 14. Be3 {[%emt 0:12:48]} Bc5 {[%emt 0:01:52]} 15. b4 {[%emt 0:06:24]} Bc4 {[%emt 0:03:39]} 16. Qe1 {[%emt 0:00:48]} Nxb4 {[%emt 0:05:16]} 17. Nxd4 {[%emt 0:03:50]} Qe8 {[%emt 0:05:36]} 18. Bd2 {[%emt 0:17:38]} Nc6 {[%emt 0:05:07]} 19. Nxc6 {[%emt 0:07:19]} Qxc6 {[%emt 0:00:12]} 20. Ne3 {[%emt 0:00:09]} Bb6 {[%emt 0:04:09]} 21. Ba5 {[%emt 0:01:54]} Be6 {[%emt 0:01:57]} 22. Bxb6 {[%emt 0:04:04]} Qxb6 {[%emt 0:00:07]} 23. Qd2 {[%emt 0:13:08]} a5 {[%emt 0:10:47]} 24. Qd4 {[%emt 0:05:01]} Qxd4 {[%emt 0:00:11]} 25. Rxd4 {[%emt 0:00:03]} a4 {[%emt 0:00:09]} 26. Rb4 {[%emt 0:03:55]} Rfb8 {[%emt 0:01:31]} 27. c4 {[%emt 0:00:35]} Bxc4 {[%emt 0:00:07]} 28. Nxc4 {[%emt 0:01:02]} c5 {[%emt 0:00:05]} 29. Nb6 {[%emt 0:00:30]} cxb4 {[%emt 0:00:27]} 30. Nxa8 {[%emt 0:00:07]} Rxa8 {[%emt 0:00:03]} 31. Kf1 {[%emt 0:00:41]} b3 {[%emt 0:00:11]} 32. Ke2 {[%emt 0:00:13]} Rc8 {[%emt 0:01:19]} 33. Rd1 {[%emt 0:00:32]} Rc2+ {[%emt 0:00:04]} 34. Ke3 {[%emt 0:00:06]} Kf8 {[%emt 0:00:40]} 35. Kd4 0-1

[Event "Gideon Japhet ACP Open 2018"]
[Site "Jerusalem"]
[Date "2018.07.01"]
[Round "1"]
[White "Gleizer, Mark"]
[Black "Baron, Tal"]
[Result "0-1"]
[ECO "D04"]
[WhiteElo "2161"]
[BlackElo "2530"]
[Annotator "ChessBase"]
[PlyCount "71"]
[EventDate "2018.07.01"]
[EventType "swiss"]
[EventCountry "ISR"]
[SourceTitle "playchess.com"]
[Source "ChessBase"]
[SourceQuality "1"]
[TimeControl "40/5400+30:1800+30"]

1. d4 {[%emt 0:00:00]} Nf6 {[%emt 0:00:02]} 2. Nf3 {[%emt 0:00:00]} d5 {[%emt 0:00:30]} 3. e3 {[%emt 0:00:52]} c5 {[%emt 0:00:48]} 4. c3 {[%emt 0:03:05]} Nbd7 {[%emt 0:06:54]} 5. Nbd2 {[%emt 0:03:48]} g6 {[%emt 0:00:09]} 6. Ne5 {[%emt 0:01:47]} Nxe5 {[%emt 0:05:46]} 7. dxe5 {[%emt 0:00:14]} Ng4 {[%emt 0:02:36]} 8. Bb5+ {[%emt 0:08:10]} Bd7 {[%emt 0:10:14]} 9. e6 {[%emt 0:01:19]} Bxb5 {[%emt 0:00:20]} 10. exf7+ {[%emt 0:00:16]} Kxf7 {[%emt 0:00:05]} 11. Qxg4 {[%emt 0:00:28]} Qc8 {[%emt 0:07:16]} 12. Qxc8 {[%emt 0:15:23]} Rxc8 {[%emt 0:01:15]} 13. f4 {[%emt 0:00:05]} e5 {[%emt 0:04:49]} 14. fxe5 {[%emt 0:03:29]} g5 {[%emt 0:01:52]} 15. h3 {[%emt 0:03:55]} Bg7 {[%emt 0:09:08]} 16. Nf3 {[%emt 0:00:41]} Kg6 {[%emt 0:01:08]} 17. Bd2 {[%emt 0:06:43]} h5 {[%emt 0:06:55]} 18. O-O-O {[%emt 0:00:49]} g4 {[%emt 0:01:57]} 19. Nh4+ {[%emt 0:04:32]} Kf7 {[%emt 0:02:20]} 20. Be1 {[%emt 0:00:56]} Bxe5 {[%emt 0:10:49]} 21. Rxd5 {[%emt 0:01:01]} Rhe8 {[%emt 0:00:35]} 22. hxg4 {[%emt 0:05:09]} hxg4 {[%emt 0:01:26]} 23. Nf5 {[%emt 0:01:18]} Ke6 {[%emt 0:10:44]} 24. e4 {[%emt 0:01:49]} Bc6 {[%emt 0:01:13]} 25. Rh6+ {[%emt 0:09:55]} Kf7 {[%emt 0:00:01]} 26. Nd6+ {[%emt 0:02:57]} Bxd6 {[%emt 0:00:02]} 27. Rdxd6 {[%emt 0:00:19]} Bxe4 {[%emt 0:02:04]} 28. Bh4 {[%emt 0:01:50]} Rc7 {[%emt 0:02:23]} 29. Bd8 {[%emt 0:01:06]} Rc6 {[%emt 0:00:22]} 30. Rd7+ {[%emt 0:00:48]} Kg8 {[%emt 0:00:13]} 31. Bf6 {[%emt 0:00:48]} Rxf6 {[%emt 0:02:11]} 32. Rxf6 {[%emt 0:00:09]} Bc6 {[%emt 0:02:16]} 33. Rc7 {[%emt 0:05:23]} Re4 {[%emt 0:05:51]} 34. Kd2 {[%emt 0:03:14]} c4 {[%emt 0:00:02]} 35. Rd6 {[%emt 0:04:36]} Kf8 {[%emt 0:01:37]} 36. Rd8+ {[%emt 0:01:16]} 0-1

[Event "Gideon Japhet ACP Open 2018"]
[Site "Jerusalem"]
[Date "2018.07.01"]
[Round "1"]
[White "Musyuk, Lior"]
[Black "Steinberg, Nitzan"]
[Result "1/2-1/2"]
[ECO "B51"]
[WhiteElo "2160"]
[BlackElo "2521"]
[Annotator "ChessBase"]
[PlyCount "28"]
[EventDate "2018.07.01"]
[EventType "swiss"]
[EventCountry "ISR"]
[SourceTitle "playchess.com"]
[Source "ChessBase"]
[SourceQuality "1"]
[TimeControl "40/5400+30:1800+30"]

1. e4 {[%emt 0:00:00]} c5 {[%emt 0:00:00]} 2. Nf3 {[%emt 0:00:00]} d6 {[%emt 0:00:01]} 3. Bb5+ {[%emt 0:00:03]} Nd7 {[%emt 0:01:12]} 4. d4 {[%emt 0:00:31]} cxd4 {[%emt 0:00:27]} 5. Qxd4 {[%emt 0:00:16]} a6 {[%emt 0:01:01]} 6. Bxd7+ {[%emt 0:00:12]} Bxd7 {[%emt 0:00:08]} 7. c4 {[%emt 0:00:14]} e5 {[%emt 0:03:24]} 8. Qd3 {[%emt 0:00:34]} b5 {[%emt 0:00:12]} 9. Nc3 {[%emt 0:00:21]} bxc4 10. Qxc4 {[%emt 0:00:30]} Be6 {[%emt 0:10:25]} 11. Qc6+ {[%emt 0:00:26]} Bd7 {[%emt 0:00:11]} 12. Qc4 {[%emt 0:00:02]} Be6 {[%emt 0:00:53]} 13. Qc6+ {[%emt 0:00:12]} Bd7 {[%emt 0:00:07]} 14. Qc4 {[%emt 0:00:01]} Be6 {[%emt 0:06:27]} 1/2-1/2

[Event "Gideon Japhet ACP Open 2018"]
[Site "Jerusalem"]
[Date "2018.07.01"]
[Round "1"]
[White "Sokolovsky, Yahli"]
[Black "Oratovsky, Michael"]
[Result "0-1"]
[ECO "B40"]
[WhiteElo "2084"]
[BlackElo "2461"]
[Annotator "ChessBase"]
[PlyCount "68"]
[EventDate "2018.07.01"]
[EventType "swiss"]
[EventCountry "ISR"]
[SourceTitle "playchess.com"]
[Source "ChessBase"]
[SourceQuality "1"]
[TimeControl "40/5400+30:1800+30"]

1. e4 {[%emt 0:00:00]} c5 {[%emt 0:00:00]} 2. Nf3 {[%emt 0:00:00]} e6 {[%emt 0:00:00]} 3. d3 {[%emt 0:00:17]} Nc6 {[%emt 0:00:00]} 4. g3 {[%emt 0:00:30]} g6 {[%emt 0:00:05]} 5. Bg2 {[%emt 0:01:19]} Bg7 {[%emt 0:00:08]} 6. O-O {[%emt 0:00:58]} Nge7 {[%emt 0:00:22]} 7. Re1 {[%emt 0:03:11]} d6 {[%emt 0:03:32]} 8. Nbd2 {[%emt 0:04:20]} O-O {[%emt 0:00:50]} 9. Nf1 {[%emt 0:05:50]} e5 {[%emt 0:07:40]} 10. Ne3 {[%emt 0:13:42]} h6 {[%emt 0:17:56]} 11. c3 {[%emt 0:09:00]} Be6 {[%emt 0:03:37]} 12. Nh4 {[%emt 0:12:39]} d5 {[%emt 0:17:57]} 13. c4 {[%emt 0:12:19]} dxc4 {[%emt 0:05:36]} 14. dxc4 {[%emt 0:02:41]} Nd4 {[%emt 0:00:40]} 15. Nd5 {[%emt 0:04:00]} Nec6 {[%emt 0:13:24]} 16. Be3 {[%emt 0:01:43]} Rc8 {[%emt 0:06:47]} 17. Qd2 {[%emt 0:02:15]} Kh7 {[%emt 0:01:48]} 18. Nf3 {[%emt 0:03:01]} Bg4 {[%emt 0:07:33]} 19. Bxd4 {[%emt 0:01:37]} exd4 {[%emt 0:00:17]} 20. a3 {[%emt 0:07:06]} Bxf3 {[%emt 0:01:44]} 21. Bxf3 {[%emt 0:00:03]} Ne5 {[%emt 0:00:06]} 22. Be2 {[%emt 0:10:43]} d3 {[%emt 0:00:10]} 23. f4 {[%emt 0:02:04]} Nxc4 {[%emt 0:00:24]} 24. Qxd3 {[%emt 0:00:12]} Nxb2 {[%emt 0:00:11]} 25. Qc2 {[%emt 0:01:43]} c4 {[%emt 0:02:14]} 26. Rab1 {[%emt 0:00:44]} Qa5 {[%emt 0:00:50]} 27. Rec1 {[%emt 0:00:52]} Qxa3 {[%emt 0:02:41]} 28. Kg2 {[%emt 0:00:38]} Rfd8 {[%emt 0:01:25]} 29. Ra1 {[%emt 0:00:30]} Qc5 {[%emt 0:00:27]} 30. Ra2 {[%emt 0:00:31]} Qd4 {[%emt 0:00:54]} 31. Qc3 {[%emt 0:00:30]} Qxe4+ {[%emt 0:01:12]} 32. Bf3 {[%emt 0:00:12]} Qxd5 {[%emt 0:01:37]} 33. Bxd5 {[%emt 0:00:44]} Bxc3 {[%emt 0:00:06]} 34. Rxc3 {[%emt 0:00:18]} Nd1 {[%emt 0:00:55]} 0-1